bitfinex-derivatives/quotes_BNBF0:USTF0_20250303
["timestamp","ask_amount","ask_price","bid_price","bid_amount"]
[1741004287692,3.31566667,603.4,603.36,0.275]
[1741004287889,3.31566667,603.39,603.36,0.275]
[1741004288089,3.31566667,603.38,603.36,0.275]
[1741004288291,3.31566667,603.37,603.36,0.275]
[1741004288793,2.65253334,603.37,603.36,0.275]
[1741004288993,3.31565021,603.37,603.36,0.275]
[1741004289193,2.65256718,603.37,603.36,0.275]
[1741004289397,5.04679763,603.37,603.36,0.275]
[1741004292096,3.31571272,603.37,603.36,0.275]
[1741004292396,5.04684069,603.37,603.36,0.275]
[1741004295196,0.33140565,603.49,603.36,0.275]
[1741004295497,1.73115667,603.37,603.36,0.275]
[1741004295697,3.31603856,603.37,603.36,0.275]
[1741004295996,5.04719523,603.37,603.36,0.275]
[1741004296496,5.04719523,603.37,603.3,0.62]
[1741004296691,3.64751562,603.36,603.3,0.62]
[1741004296892,3.64752111,603.35,603.3,0.62]
[1741004297099,3.6475266,603.34,603.3,0.62]
[1741004297295,3.6475321,603.33,603.3,0.62]
[1741004297497,3.31603856,603.32,603.3,0.62]
[1741004297797,3.64754309,603.31,603.3,0.62]
[1741004299793,0.33150453,603.31,603.3,0.62]
[1741004299997,3.64770179,603.31,603.3,0.62]
[1741004301396,5.37940341,603.31,603.3,0.62]
[1741004304098,3.64801706,603.31,603.3,0.62]
[1741004304501,5.37941777,603.31,603.3,0.62]
[1741004304703,5.37941777,603.31,603.22,0.547]
[1741004304901,3.31651253,603.3,603.22,0.547]
[1741004305103,3.31651253,603.29,603.22,0.547]
[1741004305305,3.31651253,603.28,603.22,0.547]
[1741004305502,3.64803904,603.27,603.22,0.547]
[1741004305701,3.31651253,603.26,603.22,0.547]
[1741004306006,3.31651253,603.25,603.22,0.547]
[1741004306306,3.31651253,603.24,603.22,0.547]
[1741004306507,3.64806102,603.23,603.22,0.547]
[1741004307601,5.37974892,603.23,603.22,0.547]
[1741004308401,5.37974892,603.23,603.12,0.274]
[1741004308602,1.63420337,603.15,603.12,0.274]
[1741004308802,4.9507159,603.14,603.12,0.274]
[1741004309001,3.31651253,603.13,603.12,0.274]
[1741004310513,5.37999061,603.13,603.12,0.274]
[1741004313119,3.64811599,603.13,603.12,0.274]
[1741004313415,5.37999061,603.13,603.12,0.274]
[1741004313824,5.38054095,603.13,603.12,0.274]
[1741004316120,3.64866633,603.13,603.12,0.274]
[1741004316619,5.3804404,603.13,603.12,0.274]
[1741004316822,4.71702783,603.13,603.12,0.274]
[1741004318014,2.06337753,603.13,603.12,0.274]
[1741004318618,4.71636575,603.13,603.12,0.274]
[1741004318820,2.06337753,603.13,603.12,0.274]
[1741004319222,0.33160346,603.13,603.12,0.274]
[1741004319424,2.06321955,603.13,603.12,0.274]
[1741004321629,2.06321955,603.13,603.04,0.62]
[1741004328126,0.33160346,603.13,603.04,0.62]
[1741004328523,1.73151557,603.12,603.04,0.62]
[1741004334126,0.33160346,603.13,603.04,0.62]
[1741004334528,1.73165199,603.11,603.04,0.62]
[1741004335326,0.33161996,603.1,603.04,0.62]
[1741004337733,0.33161996,603.1,602.94,0.273]
[1741004340431,1.73265067,603.09,602.94,0.273]
[1741004340636,0.33163096,603.08,602.94,0.273]
[1741004343437,1.7320111,603.07,602.94,0.273]
[1741004343637,0.33164195,603.06,602.94,0.273]
[1741004346638,1.73186744,603.05,602.94,0.273]
[1741004346940,0.33165295,603.04,602.94,0.273]
[1741004349534,1.73199673,603.03,602.94,0.273]
[1741004349733,0.33166395,603.02,602.94,0.273]
[1741004352436,1.73211167,603.01,602.94,0.273]
[1741004352741,0.33167495,603.0,602.94,0.273]
[1741004353637,2.65419532,602.99,602.94,0.273]
[1741004353840,2.98599664,602.98,602.94,0.273]
[1741004354036,0.33169146,602.97,602.94,0.273]
[1741004355034,0.33169146,602.97,601.72,1.23282255]
[1741004355440,1.73225537,602.96,601.72,1.23282255]
[1741004355741,0.33170246,602.95,601.72,1.23282255]
[1741004356135,0.33170246,602.95,601.63,1.23282255]
[1741004356742,0.33170246,602.95,601.64,0.3324247]
[1741004357941,0.33170246,602.95,601.76,1.23282255]
[1741004358446,1.73298862,602.94,601.76,1.23282255]
[1741004358644,2.06469658,602.94,601.76,1.23282255]
[1741004359748,2.06469658,602.94,601.95,1.23282255]
[1741004359946,1.73298862,602.94,601.95,1.23282255]
[1741004362049,3.54798862,602.94,601.86,1.23282255]
[1741004364048,3.54798862,602.94,601.83,1.23282255]
[1741004364249,1.815,602.94,601.83,1.23282255]
[1741004364450,1.73283041,602.93,601.83,1.23282255]
[1741004366953,1.73283041,602.93,602.27,1.23282255]
[1741004368448,2.252,602.92,602.27,1.23282255]
[1741004368652,2.252,602.92,602.15,1.23282255]
[1741004370354,1.73267943,602.91,602.15,1.23282255]
[1741004370956,1.534,602.9,602.15,1.23282255]
[1741004371754,1.534,602.9,601.99,1.23282255]
[1741004374255,1.534,602.9,602.0,0.271]
[1741004374558,1.534,602.9,602.1,1.23282255]
[1741004375461,1.534,602.9,602.01,1.23282255]
[1741004376555,1.73279446,602.89,602.01,1.23282255]
[1741004377764,1.73279446,602.89,602.0,1.50382255]
[1741004379058,1.95,602.88,602.0,1.50382255]
[1741004379466,1.73295985,602.87,602.0,1.50382255]
[1741004380261,1.73295985,602.87,602.0,0.271]
[1741004382175,1.95,602.88,602.0,0.271]
[1741004382672,1.73321159,602.86,602.0,0.271]
[1741004385275,1.95,602.88,602.0,0.271]
[1741004385571,1.73339864,602.85,602.0,0.271]
[1741004388179,1.424,602.87,602.0,0.271]
[1741004388378,0.33175198,602.86,602.0,0.271]
[1741004388586,1.73347779,602.84,602.0,0.271]
[1741004388778,0.33176849,602.83,602.0,0.271]
[1741004389274,0.33176849,602.83,601.56,1.23282255]
[1741004389682,0.33176849,602.83,601.45,1.23282255]
[1741004390475,0.33176849,602.83,601.46,0.33252419]
[1741004391380,0.33176849,602.83,601.47,0.621]
[1741004391580,1.73357134,602.82,601.47,0.621]
[1741004391881,1.73357134,602.82,601.48,0.33251313]
[1741004392482,1.73357134,602.82,601.49,0.27]
[1741004392681,1.73357134,602.82,601.5,0.33250207]
[1741004393680,1.73357134,602.82,601.7,1.23282255]
[1741004394184,0.33176849,602.83,601.7,1.23282255]
[1741004394483,1.73323317,602.81,601.7,1.23282255]
[1741004395280,1.73323317,602.81,601.71,1.23282255]
[1741004395484,0.331785,602.8,601.71,1.23282255]
[1741004395679,1.406,602.79,601.71,1.23282255]
[1741004397685,1.7333195,602.78,601.71,1.23282255]
[1741004398283,1.97680151,602.77,601.64,1.23282255]
[1741004398586,0.33180702,602.76,601.64,1.23282255]
[1741004400186,0.33180702,602.76,601.5,0.33250207]
[1741004400187,0.33180702,602.76,601.59,1.23282255]
[1741004401485,1.73356414,602.75,601.59,1.23282255]
[1741004401685,2.06537666,602.75,601.59,1.23282255]
[1741004402288,2.06537666,602.75,601.74,1.23282255]
[1741004403990,1.507,602.74,601.74,1.23282255]
[1741004404190,1.507,602.74,601.76,1.23282255]
[1741004406385,1.73306054,602.73,601.76,1.23282255]
[1741004406586,1.73306054,602.73,601.77,0.33235289]
[1741004407385,1.73306054,602.73,602.09,1.23282255]
[1741004409193,1.507,602.74,602.09,1.23282255]
[1741004409395,1.73285918,602.72,601.77,0.33235289]
[1741004411396,2.174,602.71,601.77,0.33235289]
[1741004414492,2.174,602.71,601.98,1.23282255]
[1741004416296,2.174,602.71,601.98,1.5650595]
[1741004416497,2.174,602.71,602.11,1.23282255]
[1741004418698,2.174,602.71,602.12,0.268]
[1741004418898,2.174,602.71,602.33,1.23282255]
[1741004420298,2.174,602.71,602.12,0.268]
[1741004420499,2.082,602.7,602.12,0.268]
[1741004420799,2.082,602.7,602.13,0.33215418]
[1741004422695,2.082,602.7,602.17,1.23282255]
[1741004422899,4.043,602.7,602.17,1.23282255]
[1741004425503,4.043,602.7,602.14,1.23282255]
[1741004427007,4.043,602.7,602.2,1.23282255]
[1741004429407,4.043,602.7,602.13,0.33215418]
[1741004433816,4.043,602.7,602.31,1.23282255]
[1741004434312,5.807,602.7,602.31,1.23282255]
[1741004435412,5.807,602.7,602.35,1.23282255]
[1741004435912,5.807,602.7,602.36,0.267]
[1741004440309,7.566,602.7,602.36,0.267]
[1741004447210,7.566,602.7,602.43,1.23282255]
[1741004450016,7.566,602.7,602.26,1.23282255]
[1741004451014,7.566,602.7,602.27,0.266]
[1741004452012,7.566,602.7,602.3,1.23282255]
[1741004453818,7.566,602.7,602.27,0.266]
[1741004458017,7.566,602.7,602.27,0.885]
[1741004465126,7.566,602.7,602.4,1.23282255]
[1741004467119,7.566,602.7,602.27,0.885]
[1741004467120,7.566,602.7,602.34,1.23282255]
[1741004469526,7.566,602.7,602.41,1.23282255]
[1741004471725,7.566,602.7,602.39,1.23282255]
[1741004473922,7.566,602.7,602.41,1.23282255]
[1741004475533,7.566,602.7,602.29,1.23282255]
[1741004476327,7.566,602.7,602.29,1.49782255]
[1741004477736,7.566,602.7,602.29,0.265]
[1741004480532,7.566,602.7,602.34,1.23282255]
[1741004482940,7.566,602.7,602.37,1.23282255]
[1741004483340,7.566,602.7,602.38,0.618]
[1741004485044,7.566,602.7,602.45,1.23282255]
[1741004486746,7.566,602.7,602.41,1.23282255]
[1741004488743,7.566,602.7,602.38,0.618]
[1741004492548,7.566,602.7,602.46,1.23282255]
[1741004494647,7.566,602.7,602.52,1.23282255]
[1741004495049,1.73221226,602.96,602.52,1.23282255]
[1741004496152,1.853,602.95,602.52,1.23282255]
[1741004496447,3.5850111,602.95,602.52,1.49582255]
[1741004497154,3.5850111,602.95,602.62,1.23282255]
[1741004498354,7.5180111,602.95,602.62,1.23282255]
[1741004498847,7.5180111,602.95,602.52,0.263]
[1741004498848,7.5180111,602.95,602.64,1.23282255]
[1741004499355,5.786,602.95,602.64,1.23282255]
[1741004499553,1.73193208,602.94,602.64,1.23282255]
[1741004500254,5.786,602.95,602.64,1.23282255]
[1741004501357,5.786,602.95,602.52,0.263]
[1741004501358,5.786,602.95,602.52,1.49582255]
[1741004502551,5.786,602.95,602.52,2.11282255]
[1741004504059,5.786,602.95,602.68,1.23282255]
[1741004505459,5.786,602.95,602.66,1.23282255]
[1741004507059,5.786,602.95,602.63,1.23282255]
[1741004509761,5.786,602.95,602.61,1.23282255]
[1741004510655,5.786,602.95,602.62,0.263]
[1741004511657,7.51793927,602.95,602.62,0.263]
[1741004512961,5.786,602.95,602.62,0.263]
[1741004516759,5.786,602.95,602.65,1.23282255]
[1741004517159,7.172,602.95,602.65,1.23282255]
[1741004518665,7.172,602.95,602.62,0.263]
[1741004525469,7.172,602.95,602.62,1.49582255]
[1741004526862,7.172,602.95,602.62,1.23282255]
[1741004527463,7.172,602.95,602.6,1.23282255]
[1741004529467,7.172,602.95,602.62,1.23282255]
[1741004530169,7.172,602.95,602.63,0.262]
[1741004531668,7.172,602.95,602.64,0.617]
[1741004531865,7.172,602.95,602.72,1.23282255]
[1741004533867,7.172,602.95,602.64,0.617]
[1741004533868,7.172,602.95,602.77,1.23282255]
[1741004534268,3.239,602.95,602.77,1.23282255]
[1741004535674,3.239,602.95,602.65,1.23282255]
[1741004537569,6.767,602.95,602.65,1.23282255]
[1741004537773,6.767,602.95,602.64,0.617]
[1741004539176,6.767,602.95,602.65,1.23282255]
[1741004541174,6.767,602.95,602.64,0.617]
[1741004549881,6.767,602.95,602.65,1.23282255]
[1741004552087,6.767,602.95,602.76,1.23282255]
[1741004552383,5.381,602.95,602.76,1.23282255]
[1741004553182,3.528,602.95,602.76,1.23282255]
[1741004554684,3.528,602.95,602.65,0.261]
[1741004554685,3.528,602.95,602.8,1.23282255]
[1741004555586,1.456,602.95,602.8,1.23282255]
[1741004556984,1.456,602.95,602.73,1.23282255]
[1741004558689,3.106,602.95,602.73,1.23282255]
[1741004559292,3.106,602.95,602.71,1.23282255]
[1741004560692,3.106,602.95,602.65,0.261]
[1741004560693,3.106,602.95,602.74,1.23282255]
[1741004562088,3.106,602.95,602.65,1.49382255]
[1741004563091,3.106,602.95,602.65,2.11082255]
[1741004563998,3.106,602.95,602.79,1.23282255]
[1741004564392,1.65,602.95,602.79,1.23282255]
[1741004566199,1.65,602.95,602.86,1.23282255]
[1741004568403,1.65,602.95,602.83,1.23282255]
[1741004570600,1.65,602.95,602.92,1.23282255]
[1741004572703,1.65,602.95,602.9,1.23282255]
[1741004575406,1.65,602.95,602.65,3.38452586]
[1741004575407,1.65,602.95,602.92,1.23282255]
[1741004575607,1.974,602.96,602.92,1.23282255]
[1741004576504,1.635,602.99,602.92,1.23282255]
[1741004577010,1.635,602.99,602.85,1.23282255]
[1741004578908,1.635,602.99,602.65,0.878]
[1741004581613,1.635,602.99,602.82,1.23282255]
[1741004584117,1.635,602.99,602.81,1.23282255]
[1741004586113,2.006,603.02,602.81,1.23282255]
[1741004586513,2.006,603.02,602.84,1.46915928]
[1741004588522,2.006,603.02,602.79,0.26]
[1741004588523,2.006,603.02,602.91,1.46915928]
[1741004589920,2.006,603.02,602.79,0.26]
[1741004589921,2.006,603.02,602.93,1.46915928]
[1741004592222,2.006,603.02,602.86,1.23621941]
[1741004594429,2.006,603.02,602.96,1.23621941]
[1741004596025,2.006,603.02,602.87,1.46915928]
[1741004598025,2.006,603.02,602.98,1.46915928]
[1741004600130,2.006,603.02,602.97,1.46915928]
[1741004602229,2.006,603.02,602.89,1.46915928]
[1741004602830,2.954,603.05,602.89,1.46915928]
[1741004604832,2.954,603.05,602.88,1.46915928]
[1741004606631,2.954,603.05,602.93,1.23594083]
[1741004607038,1.289,603.05,602.93,1.23594083]
[1741004608939,1.289,603.05,602.88,1.23594083]
[1741004610741,1.289,603.05,603.0,1.23594083]
[1741004612841,1.289,603.05,602.96,1.23594083]
[1741004615149,1.289,603.05,602.93,1.23594083]
[1741004617455,1.289,603.05,603.04,1.23594083]
[1741004620759,1.289,603.05,602.89,1.46915928]
[1741004622257,1.289,603.05,603.04,1.46915928]
[1741004624452,1.289,603.05,602.93,2.50652586]
[1741004624653,1.868,603.07,602.99,2.50652586]
[1741004626756,1.868,603.07,603.06,2.50652586]
[1741004627960,1.478,603.13,603.06,2.50652586]
[1741004628562,1.439,603.18,602.95,2.50705303]
[1741004630162,1.439,603.18,603.12,1.48770072]
[1741004631962,1.439,603.18,603.09,1.23988511]
[1741004633464,1.439,603.18,602.87,0.616]
[1741004633465,1.439,603.18,603.07,1.23988511]
[1741004635163,1.439,603.18,603.06,1.23988511]
[1741004637566,1.439,603.18,603.07,1.23988511]
[1741004639665,1.439,603.18,602.99,0.258]
[1741004639666,1.439,603.18,603.15,1.48770072]
[1741004642172,1.439,603.18,603.09,2.53115748]
[1741004643968,1.439,603.18,603.13,2.53115748]
[1741004647079,1.439,603.18,603.17,1.4881538]
[1741004649177,1.439,603.18,603.16,1.4881538]
[1741004650979,1.439,603.18,603.09,2.53115748]
[1741004652580,1.439,603.18,603.11,1.48805361]
[1741004655576,1.439,603.18,603.07,1.24018303]
[1741004657878,1.439,603.18,603.11,1.24018303]
[1741004659878,1.439,603.18,603.03,1.48805361]
[1741004662383,1.439,603.18,603.17,1.2399553]
[1741004664084,1.439,603.18,603.1,1.48805361]
[1741004665590,1.439,603.18,603.06,1.48805361]
[1741004667890,3.372,603.3,603.06,1.48805361]
[1741004668688,2.0,603.29,603.06,1.48805361]
[1741004668885,3.958,603.29,603.06,1.48805361]
[1741004669386,3.958,603.29,602.9,1.23951406]
[1741004671390,3.958,603.29,602.9,1.49651406]
[1741004672589,3.958,603.29,602.9,2.11151406]
[1741004673500,3.958,603.29,602.9,0.872]
[1741004674798,1.51,603.28,602.9,0.872]
[1741004675598,1.51,603.28,602.91,1.23951406]
[1741004677301,1.51,603.28,602.9,0.872]
[1741004685607,1.73107774,603.27,602.9,0.872]
[1741004691416,1.51,603.28,602.9,0.872]
[1741004691615,3.42608491,603.26,602.9,0.872]
[1741004694418,1.695,603.26,602.9,0.872]
[1741004694618,1.73109209,603.25,602.9,0.872]
[1741004697417,1.695,603.26,602.9,0.872]
[1741004701418,1.695,603.26,602.91,1.23951406]
[1741004703423,1.695,603.26,602.92,1.23951406]
[1741004703620,1.73108491,603.25,602.92,1.23951406]
[1741004704828,1.73108491,603.25,602.92,2.11051406]
[1741004705430,1.73108491,603.25,602.92,0.871]
[1741004706434,1.695,603.26,602.92,0.871]
[1741004706730,1.73108491,603.24,602.92,0.871]
[1741004711736,1.259,603.23,602.92,0.871]
[1741004712537,1.222,603.22,602.92,0.871]
[1741004712737,2.95321409,603.22,602.92,0.871]
[1741004715331,1.222,603.22,602.92,0.871]
[1741004718744,1.73123562,603.21,602.92,0.871]
[1741004721342,1.222,603.22,602.92,0.871]
[1741004724258,1.585,603.21,602.92,0.871]
[1741004733859,1.7312428,603.2,602.92,0.871]
[1741004736161,2.9742428,603.2,602.92,0.871]
[1741004736362,1.243,603.2,602.92,0.871]
[1741004736766,1.73124997,603.19,602.92,0.871]
[1741004739366,1.243,603.2,602.92,0.871]
[1741004739563,1.73125715,603.18,602.92,0.871]
[1741004740365,1.908,603.17,602.92,0.871]
[1741004745072,1.9,603.16,602.92,0.871]
[1741004745670,1.73133611,603.15,602.92,0.871]
[1741004748377,1.9,603.16,602.92,0.871]
[1741004748677,1.73134328,603.14,602.92,0.871]
[1741004751078,1.9,603.16,602.92,0.871]
[1741004773603,1.457,603.15,602.92,0.871]
[1741004778304,1.94,603.14,602.92,0.871]
[1741004781812,1.73134328,603.13,602.92,0.871]
[1741004784317,1.642,603.12,602.92,0.871]
[1741004787426,1.126,603.11,602.92,0.871]
[1741004792432,2.758,603.11,602.92,0.871]
[1741004795833,3.916,603.11,602.92,0.871]
[1741004796634,1.73140071,603.1,602.92,0.871]
[1741004797134,1.73140071,603.1,602.45,1.23951406]
[1741004797327,1.73140071,603.1,602.1,2.53115748]
[1741004797328,1.73140071,603.1,602.39,1.23951406]
[1741004799327,2.79,603.11,602.39,1.23951406]
[1741004799534,2.79,603.11,602.47,1.23951406]
[1741004799729,1.73188899,603.09,602.47,1.23951406]
[1741004800228,1.73188899,603.09,602.48,0.866]
[1741004804033,1.73188899,603.09,602.51,1.23951406]
[1741004804835,1.218,603.08,602.51,1.23951406]
[1741004805938,1.218,603.08,602.48,0.866]
[1741004807939,1.218,603.08,602.48,2.10551406]
[1741004810437,1.218,603.08,602.73,1.23951406]
[1741004812640,1.218,603.08,602.6,1.23951406]
[1741004814044,1.218,603.08,602.63,1.23951406]
[1741004814643,2.837,603.08,602.63,1.23951406]
[1741004815848,2.837,603.08,602.76,1.23951406]
[1741004816045,4.607,603.08,602.76,1.23951406]
[1741004816747,6.276,603.08,602.76,1.23951406]
[1741004820552,6.276,603.08,602.67,1.23951406]
[1741004823155,6.276,603.08,602.78,1.23951406]
[1741004825159,6.276,603.08,602.48,0.614]
[1741004825160,6.276,603.08,602.58,1.23951406]
[1741004826952,6.276,603.08,602.48,0.614]
[1741004826953,6.276,603.08,602.55,1.23951406]
[1741004827358,6.276,603.08,602.55,1.49051406]
[1741004829559,6.276,603.08,602.59,1.23951406]
[1741004831359,6.276,603.08,602.6,0.614]
[1741004833858,6.276,603.08,602.67,1.23951406]
[1741004836162,6.276,603.08,602.6,0.614]
[1741004843065,6.276,603.08,602.83,1.23951406]
[1741004844366,6.276,603.08,602.6,0.614]
[1741004845461,6.276,603.08,602.61,0.25]
[1741004848462,6.276,603.08,602.62,0.613]
[1741004855486,6.276,603.08,602.76,1.23951406]
[1741004857385,6.276,603.08,602.77,1.23951406]
[1741004858984,6.276,603.08,602.78,1.23951406]
[1741004860882,6.276,603.08,602.81,1.23951406]
[1741004862890,6.276,603.08,602.71,1.23951406]
[1741004863787,6.276,603.08,602.72,0.613]
[1741004865596,6.276,603.08,602.78,1.23951406]
[1741004867286,6.276,603.08,602.79,1.23951406]
[1741004869496,6.276,603.08,602.8,1.23951406]
[1741004873396,6.276,603.08,602.72,0.613]
[1741004873397,6.276,603.08,602.87,1.23951406]
[1741004873788,6.276,603.08,602.88,0.249]
[1741004874598,6.276,603.08,602.88,1.48851406]
[1741004877497,6.276,603.08,602.93,1.23951406]
[1741004877996,1.73109926,603.34,602.93,1.23951406]
[1741004878991,1.411,603.33,602.93,1.23951406]
[1741004879792,1.411,603.33,602.89,1.23951406]
[1741004880796,1.73093423,603.32,602.89,1.23951406]
[1741004881995,1.73093423,603.32,602.91,1.23951406]
[1741004883297,1.73093423,603.32,602.88,0.249]
[1741004883600,4.163,603.33,602.88,0.249]
[1741004883799,1.73109926,603.31,602.88,0.249]
[1741004886496,4.163,603.33,602.88,0.249]
[1741004886699,1.73109926,603.3,602.88,0.249]
[1741004887302,1.795,603.29,602.88,0.249]
[1741004894009,1.795,603.29,602.89,0.613]
[1741004896205,1.467,603.28,602.89,0.613]
[1741004897104,1.728,603.27,602.89,0.613]
[1741004898609,1.728,603.27,602.92,1.23951406]
[1741004899011,1.728,603.27,602.92,1.48851406]
[1741004900713,1.728,603.27,602.93,1.23951406]
[1741004901113,1.911,603.26,602.93,1.23951406]
[1741004902916,1.911,603.26,602.92,0.249]
[1741004902917,1.911,603.26,602.96,1.23951406]
[1741004905119,1.911,603.26,602.98,1.23951406]
[1741004906820,1.911,603.26,603.02,1.23951406]
[1741004908518,1.911,603.26,602.92,0.249]
[1741004912324,1.763,603.25,602.92,0.249]
[1741004926233,1.392,603.24,602.92,0.862]
[1741004927338,1.443,603.23,602.92,0.862]
[1741004935549,1.733,603.22,602.92,0.862]
[1741004941550,1.22,603.21,602.92,0.862]
[1741004952557,1.529,603.2,602.92,0.862]
[1741004959566,2.716,603.2,602.92,0.862]
[1741004960660,4.005,603.2,602.92,0.862]
[1741004972274,5.265,603.2,602.92,0.862]
[1741004988797,6.99619256,603.2,602.92,0.862]
[1741004991496,5.265,603.2,602.92,0.862]
[1741004991899,6.99619256,603.2,602.92,0.862]
[1741004994502,5.265,603.2,602.92,0.862]
[1741004995005,1.73124997,603.19,602.92,0.862]
[1741004996607,3.57524997,603.19,602.92,0.862]
[1741004998598,8.23724997,603.19,602.92,0.862]
[1741005000401,1.65793159,603.18,602.92,0.862]
[1741005000606,6.506,603.19,602.92,0.862]
[1741005000802,1.7314366,603.17,602.92,0.862]
[1741005001405,1.65807659,603.16,602.92,0.862]
[1741005001607,1.65807659,603.15,602.92,0.862]
[1741005001907,1.65807659,603.14,602.92,0.862]
[1741005002102,1.65807659,603.13,602.92,0.862]
[1741005002306,4.31110701,603.12,602.92,0.862]
[1741005002607,4.31110701,603.11,602.92,0.862]
[1741005002806,4.31110701,603.1,602.92,0.862]
[1741005003002,1.65807659,603.09,602.92,0.862]
[1741005003208,1.65807659,603.09,602.4,1.23951406]
[1741005003414,1.65807659,603.08,602.39,1.23951406]
[1741005003609,1.73167354,603.14,602.39,1.23951406]
[1741005003808,1.65810166,603.13,602.39,1.23951406]
[1741005004007,1.65810166,603.12,602.39,1.23951406]
[1741005004204,1.65810166,603.11,602.39,1.23951406]
[1741005004409,1.65810166,603.1,602.39,1.23951406]
[1741005004610,1.73167354,603.14,602.39,1.23951406]
[1741005004810,1.65804735,603.13,602.34,1.23951406]
[1741005005006,1.73167354,603.14,602.34,1.23951406]
[1741005006212,1.73167354,603.14,602.42,1.23951406]
[1741005008013,1.73167354,603.14,602.37,1.23951406]
[1741005009513,6.506,603.19,602.37,1.23951406]
[1741005009713,1.73177407,603.15,602.37,1.23951406]
[1741005010111,1.73177407,603.15,602.35,0.864]
[1741005012611,6.506,603.19,602.35,0.864]
[1741005012816,1.73176689,603.14,602.35,0.864]
[1741005015615,6.506,603.19,602.35,0.864]
[1741005015816,1.73177407,603.13,602.35,0.864]
[1741005017015,1.73177407,603.13,602.35,2.10351406]
[1741005018711,1.73169508,603.17,602.35,2.10351406]
[1741005019110,1.73169508,603.17,602.38,1.23951406]
[1741005021113,1.73169508,603.17,602.57,1.23951406]
[1741005021517,4.883,603.19,602.57,1.23951406]
[1741005024420,4.883,603.19,602.66,1.23951406]
[1741005026321,4.883,603.19,602.67,1.23951406]
[1741005028122,4.883,603.19,602.68,1.23951406]
[1741005030024,4.883,603.19,602.35,0.864]
[1741005030025,4.883,603.19,602.64,1.23951406]
[1741005031025,6.574,603.19,602.64,1.23951406]
[1741005031621,6.574,603.19,602.5,1.23951406]
[1741005033522,6.574,603.19,602.51,0.614]
[1741005033928,1.73164481,603.18,602.51,0.614]
[1741005035530,1.479,603.17,602.51,0.614]
[1741005036524,1.479,603.17,602.52,0.251]
[1741005036728,1.479,603.17,602.63,1.23951406]
[1741005037430,3.211,603.16,602.63,1.23951406]
[1741005039425,3.211,603.16,602.7,1.23951406]
[1741005041531,3.211,603.16,602.82,1.23951406]
[1741005043230,3.211,603.16,602.96,1.23951406]
[1741005045430,3.211,603.16,602.95,1.23951406]
[1741005047729,3.211,603.16,602.94,1.23951406]
[1741005050334,1.934,603.16,602.94,1.23951406]
[1741005051733,1.934,603.16,602.95,0.613]
[1741005053537,1.388,603.15,602.95,0.613]
[1741005060531,1.518,603.14,602.95,0.613]
[1741005063441,2.85,603.14,602.95,0.613]
[1741005067635,2.85,603.14,602.95,0.864]
[1741005069742,4.415,603.14,602.95,0.864]
[1741005080840,6.146,603.14,602.95,0.864]
[1741005090851,1.73132893,603.13,602.95,0.864]
[1741005091352,1.73132893,603.13,602.95,0.251]
[1741005093758,1.73132893,603.13,602.62,1.23951406]
[1741005094257,1.73132893,603.13,602.63,0.614]
[1741005096959,1.73132893,603.13,602.64,0.252]
[1741005097260,3.627,603.12,602.64,0.252]
[1741005101061,1.613,603.11,602.64,0.252]
[1741005102963,1.73168072,603.1,602.64,0.252]
[1741005105769,1.613,603.11,602.64,0.252]
[1741005105966,1.73193208,603.09,602.64,0.252]